fUSD/lending_fUSD_20250630
["ID","MTS","AMOUNT","RATE_DAILY","PERIOD"]
[368628527,1751251849101,-151.0,0.00018081,2]
[368628528,1751251849110,-151.0,0.00018081,2]
[368628529,1751251849120,-151.0,0.00018081,2]
[368628530,1751251849129,-6658.78,0.00018081,2]
[368628531,1751251849139,-490.0,0.00018081,2]
[368628532,1751251849148,-151.0,0.00018081,2]
[368628533,1751251849157,-493.27990189,0.00018081,2]
[368628534,1751251849167,-490.62657663,0.00018081,2]
[368628535,1751251849177,-490.0,0.00018081,2]
[368628536,1751251849187,-490.0,0.00018081,2]
[368628537,1751251849196,-2259.83,0.00018081,2]
[368628538,1751251849205,-2583.65,0.00018081,2]
[368628539,1751251849216,-467.19071932,0.00018081,2]
[368628540,1751251849225,-4480.33,0.00018081,2]
[368628541,1751251849234,-4680.89,0.00018081,2]
[368628542,1751251849244,-500.0,0.00018081,2]
[368628543,1751251849255,-2193.03,0.00018081,2]
[368628544,1751251849264,-1533.08,0.00018081,2]
[368628545,1751251849275,-257.827411,0.00018081,2]
[368628546,1751251849285,-1416.92,0.00018081,2]
[368628547,1751251849295,-257.827411,0.00018081,2]
[368628548,1751251849304,-490.0,0.00018081,2]
[368628549,1751251849314,-257.827411,0.00018081,2]
[368628550,1751251849323,-257.827411,0.00018081,2]
[368628551,1751251849332,-9965.13,0.00018081,2]
[368628552,1751251849341,-1476.84,0.00018081,2]
[368628553,1751251849351,-490.0,0.00018081,2]
[368628554,1751251849360,-257.827411,0.00018081,2]
[368628555,1751251849370,-257.827411,0.00018081,2]
[368628556,1751251849379,-257.827411,0.00018081,2]
[368628557,1751251849388,-257.827411,0.00018081,2]
[368628558,1751251849398,-3492.88,0.00018081,2]
[368628559,1751251849407,-490.0,0.00018081,2]
[368628560,1751251849416,-1367.82,0.00018081,2]
[368628561,1751251849425,-2748.66,0.00018081,2]
[368628562,1751251849438,-2321.41,0.00018081,2]
[368628563,1751251849448,-490.0,0.00018081,2]
[368628564,1751251849457,-490.0,0.00018081,2]
[368628565,1751251849467,-500.0,0.00018081,2]
[368628566,1751251849478,-151.0,0.00018081,2]
[368628567,1751251849488,-152.581654,0.00018081,2]
[368628568,1751251849498,-490.0,0.00018082,2]
[368628569,1751251849508,-610.08,0.00018082,2]
[368628570,1751251849518,-359.53,0.00018082,2]
[368628571,1751251849528,-772.12,0.00018082,2]
[368628572,1751251849537,-527.71214363,0.00018082,2]
[368628573,1751251849547,-874.69,0.00018082,2]
[368628574,1751251849557,-1786.43,0.00018082,2]
[368628575,1751251849566,-636.04,0.00018082,2]
[368628576,1751251849575,-941.24,0.00018082,2]
[368628577,1751251849584,-287.789544,0.00018082,2]
[368628578,1751251849593,-718.91,0.00018082,2]
[368628579,1751251849603,-490.0,0.00018082,2]
[368628580,1751251849613,-490.0,0.00018082,2]
[368628581,1751251849622,-855.65,0.00018082,2]
[368628582,1751251849631,-613.2,0.00018082,2]
[368628583,1751251849640,-490.0,0.00018082,2]
[368628584,1751251849650,-490.0,0.00018082,2]
[368628585,1751251849660,-490.0,0.00018082,2]
[368628586,1751251849669,-490.0,0.00018082,2]
[368628587,1751251849679,-151.0,0.00018082,2]
[368628588,1751251849690,-151.0,0.00018082,2]
[368628589,1751251849699,-151.0,0.00018082,2]
[368628590,1751251849709,-151.0,0.00018082,2]
[368628591,1751251849718,-151.0,0.00018082,2]
[368628592,1751251849728,-151.0,0.00018082,2]
[368628593,1751251849737,-567.61,0.00018082,2]
[368628594,1751251849747,-490.0,0.00018082,2]
[368628595,1751251849756,-490.0,0.00018082,2]
[368628596,1751251849766,-490.0,0.00018082,2]
[368628597,1751251849775,-490.0,0.00018082,2]
[368628598,1751251849785,-490.0,0.00018082,2]
[368628599,1751251849795,-729.38,0.00018082,2]
[368628600,1751251849804,-1076.43,0.00018082,2]
[368628601,1751251849814,-490.0,0.00018082,2]
[368628602,1751251849825,-972.21,0.00018082,2]
[368628603,1751251849836,-490.0,0.00018082,2]
[368628604,1751251849846,-1095.99,0.00018082,2]
[368628605,1751251849855,-151.0,0.00018082,2]
[368628606,1751251849865,-300.041276,0.00018082,2]
[368628607,1751251849874,-771.51,0.00018082,2]
[368628608,1751251849884,-490.0,0.00018082,2]
[368628609,1751251849893,-490.0,0.00018082,2]
[368628610,1751251849903,-546.08,0.00018082,2]
[368628611,1751251849912,-490.0,0.00018082,2]
[368628612,1751251849922,-684.76,0.00018082,2]
[368628613,1751251849933,-490.0,0.00018082,2]
[368628614,1751251849943,-490.0,0.00018082,2]
[368628615,1751251849952,-490.0,0.00018082,2]
[368628616,1751251849961,-636.59,0.00018082,2]
[368628617,1751251849971,-3318.31,0.00018082,2]
[368628618,1751251849981,-1491.42,0.00018082,2]
[368628619,1751251849990,-490.0,0.00018082,2]
[368628620,1751251850000,-1467.24,0.00018082,2]
[368628621,1751251850010,-525.71,0.00018082,2]
[368628622,1751251850019,-490.0,0.00018082,2]
[368628623,1751251850028,-490.0,0.00018082,2]
[368628624,1751251850038,-490.0,0.00018082,2]
[368628625,1751251850047,-1225.11,0.00018082,2]
[368628626,1751251850056,-1086.29,0.00018082,2]
[368628627,1751251850065,-490.0,0.00018082,2]
[368628628,1751251850075,-490.0,0.00018082,2]
[368628629,1751251850085,-490.0,0.00018082,2]
[368628630,1751251850095,-490.0,0.00018082,2]
[368628631,1751251850104,-490.0,0.00018082,2]
[368628632,1751251850114,-593.85,0.00018082,2]
[368628633,1751251850123,-490.0,0.00018082,2]
[368628634,1751251850132,-490.0,0.00018082,2]
[368628635,1751251850144,-490.0,0.00018082,2]
[368628636,1751251850153,-490.0,0.00018082,2]
[368628637,1751251850163,-490.0,0.00018082,2]
[368628638,1751251850172,-1926.03,0.00018082,2]
[368628639,1751251850182,-650.17,0.00018082,2]
[368628640,1751251850192,-1708.59,0.00018082,2]
[368628641,1751251850201,-490.0,0.00018082,2]
[368628642,1751251850211,-490.0,0.00018082,2]
[368628643,1751251850220,-2778.06,0.00018082,2]
[368628644,1751251850230,-490.0,0.00018082,2]
[368628645,1751251850240,-151.0,0.00018082,2]
[368628646,1751251850249,-151.0,0.00018082,2]
[368628647,1751251850259,-189.714608,0.00018082,2]
[368628648,1751251850268,-490.0,0.00018082,2]
[368628649,1751251850278,-490.0,0.00018082,2]
[368628650,1751251850287,-490.0,0.00018082,2]
[368628651,1751251850296,-490.0,0.00018082,2]
[368628652,1751251850306,-490.0,0.00018082,2]
[368628653,1751251850315,-490.0,0.00018082,2]
[368628654,1751251850325,-940.0,0.00018082,2]
[368628655,1751251850334,-490.0,0.00018082,2]
[368628656,1751251850343,-985.11,0.00018082,2]
[368628657,1751251850353,-490.0,0.00018082,2]
[368628658,1751251850362,-490.0,0.00018082,2]
[368628659,1751251850372,-747.71,0.00018082,2]
[368628660,1751251850381,-490.0,0.00018082,2]
[368628661,1751251850390,-490.0,0.00018082,2]
[368628662,1751251850400,-315.52697189,0.00018082,2]
[368628663,1751251850409,-1471.68,0.00018082,2]
[368628664,1751251850419,-490.0,0.00018082,2]
[368628665,1751251850428,-1060.78,0.00018082,2]
[368628666,1751251850441,-1889.68,0.00018082,2]
[368628667,1751251850744,-490.0,0.00018082,2]
[368628668,1751251850811,-490.0,0.00018082,2]
[368628669,1751251850821,-490.0,0.00018082,2]
[368628670,1751251850831,-490.0,0.00018082,2]
[368628671,1751251850841,-490.0,0.00018082,2]
[368628672,1751251850851,-554.61,0.00018082,2]
[368628673,1751251850861,-511.88,0.00018082,2]
[368628674,1751251850870,-1445.67,0.00018082,2]
[368628675,1751251850880,-519.99,0.00018082,2]
[368628676,1751251850892,-972.74,0.00018082,2]
[368628677,1751251850902,-490.0,0.00018082,2]
[368628678,1751251850911,-490.0,0.00018082,2]
[368628679,1751251850929,-960.53,0.00018082,2]
[368628680,1751251850939,-490.0,0.00018082,2]
[368628681,1751251850949,-490.0,0.00018082,2]
[368628682,1751251850961,-2155.68,0.00018082,2]
[368628683,1751251850971,-490.0,0.00018082,2]
[368628684,1751251850982,-490.0,0.00018082,2]
[368628685,1751251850992,-586.03,0.00018082,2]
[368628686,1751251851002,-490.0,0.00018082,2]
[368628687,1751251851011,-490.0,0.00018082,2]
[368628688,1751251851021,-1717.71,0.00018082,2]
[368628689,1751251851030,-490.0,0.00018082,2]
[368628690,1751251851040,-490.0,0.00018082,2]
[368628691,1751251851050,-1841.2,0.00018082,2]
[368628692,1751251851059,-885.77,0.00018082,2]
[368628693,1751251851068,-2059.3,0.00018082,2]
[368628694,1751251851078,-490.0,0.00018082,2]
[368628695,1751251851088,-490.0,0.00018082,2]
[368628696,1751251851097,-490.0,0.00018082,2]
[368628697,1751251851107,-490.0,0.00018082,2]
[368628698,1751251851116,-490.0,0.00018082,2]
[368628699,1751251851126,-490.0,0.00018082,2]
[368628700,1751251851136,-490.0,0.00018082,2]
[368628701,1751251851146,-2881.33,0.00018082,2]
[368628702,1751251851156,-1531.76,0.00018082,2]
[368628703,1751251851166,-490.0,0.00018082,2]
[368628704,1751251851176,-2070.57,0.00018082,2]
[368628705,1751251851185,-490.0,0.00018082,2]
[368628706,1751251851194,-490.0,0.00018082,2]
[368628707,1751251851203,-2375.96,0.00018082,2]
[368628708,1751251851214,-490.0,0.00018082,2]
[368628709,1751251851223,-151.0,0.00018082,2]
[368628710,1751251851232,-151.0,0.00018082,2]
[368628711,1751251851241,-153.711982,0.00018082,2]
[368628712,1751251851250,-490.0,0.00018082,2]
[368628713,1751251851260,-490.0,0.00018082,2]
[368628714,1751251851269,-490.0,0.00018082,2]
[368628715,1751251851278,-1151.24,0.00018082,2]
[368628716,1751251851288,-491.79080017,0.00018082,2]
[368628717,1751251851297,-161.793787,0.00018082,2]
[368628718,1751251851307,-490.0,0.00018082,2]
[368628719,1751251851316,-502.63806317,0.00018082,2]
[368628720,1751251851326,-2272.0,0.00018082,2]
[368628721,1751251851336,-1124.75,0.00018082,2]
[368628722,1751251851346,-1093.27,0.00018082,2]
[368628723,1751251851357,-490.0,0.00018082,2]
[368628724,1751251851368,-490.0,0.00018082,2]
[368628725,1751251851379,-617.76,0.00018082,2]
[368628726,1751251851389,-1202.45,0.00018082,2]
[368628727,1751251851399,-490.0,0.00018082,2]
[368628728,1751251851409,-151.0,0.00018082,2]
[368628729,1751251851418,-153.523841,0.00018082,2]
[368628730,1751251851428,-1011.98,0.00018082,2]
[368628731,1751251851441,-200318.67,0.00018082,2]
[368628732,1751251851450,-1292.09,0.00018082,2]
[368628733,1751251851459,-151.0,0.00018082,2]
[368628734,1751251851469,-157.969318,0.00018082,2]
[368628735,1751251851479,-903.59,0.00018082,2]
[368628736,1751251851488,-2593.58,0.00018082,2]
[368628737,1751251851497,-8491.88,0.00018082,2]
[368628738,1751251851507,-490.0,0.00018082,2]
[368628739,1751251851517,-185.00897897,0.00018082,2]
[368628740,1751251851527,-490.0,0.00018082,2]
[368628741,1751251851537,-151.0,0.00018082,2]
[368628742,1751251851547,-151.0,0.00018082,2]
[368628743,1751251851556,-490.0,0.00018082,2]
[368628744,1751251851565,-151.0,0.00018082,2]
[368628745,1751251851575,-490.0,0.00018082,2]
[368628746,1751251851584,-2865.37,0.00018082,2]
[368628747,1751251851594,-490.0,0.00018082,2]
[368628748,1751251851603,-230.31234,0.00018082,2]
[368628749,1751251851612,-490.0,0.00018082,2]
[368628750,1751251851621,-1229.7,0.00018082,2]
[368628751,1751251851630,-490.0,0.00018082,2]
[368628752,1751251851639,-2403.06,0.00018082,2]
[368628753,1751251851649,-490.0,0.00018082,2]
[368628754,1751251851660,-490.0,0.00018082,2]
[368628755,1751251851670,-490.0,0.00018082,2]
[368628756,1751251851679,-490.0,0.00018082,2]
[368628757,1751251851688,-490.0,0.00018082,2]
[368628758,1751251851697,-3607.68,0.00018082,2]
[368628759,1751251851708,-490.0,0.00018082,2]
[368628760,1751251851718,-710.44,0.00018082,2]
[368628761,1751251851728,-3116.89,0.00018082,2]
[368628762,1751251851738,-490.0,0.00018082,2]
[368628763,1751251851748,-1351.45,0.00018082,2]
[368628764,1751251851757,-490.0,0.00018082,2]
[368628765,1751251851767,-2430.73,0.00018082,2]
[368628766,1751251851776,-770.92,0.00018082,2]
[368628767,1751251851786,-4278.68,0.00018082,2]
[368628768,1751251851795,-490.0,0.00018082,2]
[368628769,1751251851804,-903.92,0.00018082,2]
[368628770,1751251851814,-490.0,0.00018082,2]
[368628771,1751251851823,-158.519669,0.00018082,2]
[368628772,1751251851833,-1309.58,0.00018082,2]
[368628773,1751251851842,-546.94485867,0.00018082,2]
[368628774,1751251851852,-171.54757118,0.00018082,2]
[368628775,1751251851861,-490.0,0.00018082,2]
[368628776,1751251851870,-2820.62,0.00018082,2]
[368628777,1751251851880,-490.0,0.00018082,2]
[368628778,1751251851889,-490.0,0.00018082,2]
[368628779,1751251851898,-257.827411,0.00018082,2]
[368628780,1751251851908,-257.827411,0.00018082,2]
[368628781,1751251851917,-765.87,0.00018082,2]
[368628782,1751251851927,-257.827411,0.00018082,2]
[368628783,1751251851938,-2624.38,0.00018082,2]
[368628784,1751251851948,-844.27,0.00018082,2]
[368628785,1751251851958,-257.827411,0.00018082,2]
[368628786,1751251851967,-257.827411,0.00018082,2]
[368628787,1751251851977,-257.827411,0.00018082,2]
[368628788,1751251851986,-490.0,0.00018082,2]
[368628789,1751251851995,-185.0,0.00018086,2]
[368628790,1751251852006,-1450.09602418,0.00018095,2]
[368628791,1751251852016,-461.57045694,0.00018118,2]
[368628792,1751251852025,-2612.7770385,0.00018142,2]
[368628793,1751251852034,-817.0,0.00018195,2]
[368628794,1751251852043,-1450.09602418,0.00018209,2]
[368628795,1751251852053,-461.57045694,0.00018254,2]
[368628796,1751251852063,-9394.6625837,0.00018256,2]
[368628797,1751251852073,-433.34356496,0.00018256,2]
[368628798,1751251852084,-2612.7770385,0.00018287,2]
[368628799,1751251852094,-1450.09602418,0.00018324,2]
[368628800,1751251852105,-524.36593154,0.00018329,2]
[368628801,1751251852115,-151.0,0.00018344,2]
[368628802,1751251852125,-151.0,0.00018344,2]
[368628803,1751251852135,-151.0,0.00018344,2]
[368628804,1751251852145,-151.0,0.00018344,2]
[368628805,1751251852154,-151.0,0.00018344,2]
[368628806,1751251852164,-151.0,0.00018344,2]
[368628807,1751251852173,-151.0,0.00018344,2]
[368628808,1751251852185,-151.0,0.00018344,2]
[368628809,1751251852194,-151.0,0.00018344,2]
[368628810,1751251852203,-151.0,0.00018344,2]
[368628811,1751251852214,-151.0,0.00018344,2]
[368628812,1751251852223,-151.0,0.00018344,2]
[368628813,1751251852233,-151.0,0.00018344,2]
[368628814,1751251852242,-151.0,0.00018344,2]
[368628815,1751251852252,-151.0,0.00018344,2]
[368628816,1751251852261,-151.0,0.00018344,2]
[368628817,1751251852271,-151.0,0.00018344,2]
[368628818,1751251852280,-151.0,0.00018344,2]
[368628819,1751251852289,-151.0,0.00018344,2]
[368628820,1751251852299,-151.0,0.00018344,2]
[368628821,1751251852308,-525.47230983,0.00018347,2]
[368628822,1751251852318,-490.0,0.00018354,2]
[368628823,1751251852327,-762.8,0.00018354,2]
[368628824,1751251852336,-490.0,0.00018354,2]
[368628825,1751251852345,-490.0,0.00018354,2]
[368628826,1751251852354,-490.0,0.00018354,2]
[368628827,1751251852363,-490.0,0.00018354,2]
[368628828,1751251852373,-490.0,0.00018354,2]
[368628829,1751251852382,-490.0,0.00018354,2]
[368628830,1751251852391,-490.0,0.00018354,2]
[368628831,1751251852400,-753.01,0.00018354,2]
[368628832,1751251852410,-490.0,0.00018354,2]
[368628833,1751251852419,-490.0,0.00018354,2]
[368628834,1751251852428,-1214.46,0.00018354,2]
[368628835,1751251852441,-806.81,0.00018354,2]
[368628836,1751251852450,-529.16,0.00018354,2]
[368628837,1751251852459,-490.0,0.00018354,2]
[368628838,1751251852468,-770.62,0.00018354,2]
[368628839,1751251852479,-929.66,0.00018354,2]
[368628840,1751251852489,-490.0,0.00018354,2]
[368628841,1751251852499,-490.0,0.00018354,2]
[368628842,1751251852509,-1084.19,0.00018354,2]
[368628843,1751251852522,-490.0,0.00018354,2]
[368628844,1751251852531,-516.18,0.00018354,2]
[368628845,1751251852542,-490.0,0.00018354,2]
[368628846,1751251852551,-490.0,0.00018354,2]
[368628847,1751251852560,-490.0,0.00018354,2]
[368628848,1751251852569,-1413.27,0.00018354,2]
[368628849,1751251852578,-622.17,0.00018354,2]
[368628850,1751251852588,-540.08,0.00018354,2]
[368628851,1751251852597,-490.0,0.00018354,2]
[368628852,1751251852606,-490.0,0.00018354,2]
[368628853,1751251852615,-490.0,0.00018354,2]
[368628854,1751251852624,-490.0,0.00018354,2]
[368628855,1751251852634,-490.0,0.00018354,2]
[368628856,1751251852643,-953.4,0.00018354,2]
[368628857,1751251852652,-490.0,0.00018354,2]
[368628858,1751251852662,-1449.6,0.00018354,2]
[368628859,1751251852671,-490.0,0.00018354,2]
[368628860,1751251852681,-558.14,0.00018354,2]
[368628861,1751251852691,-742.28,0.00018354,2]
[368628862,1751251852701,-490.0,0.00018354,2]
[368628863,1751251852712,-665.87,0.00018354,2]
[368628864,1751251852722,-490.0,0.00018354,2]
[368628865,1751251852732,-490.0,0.00018354,2]
[368628866,1751251852743,-808.09,0.00018354,2]
[368628867,1751251852753,-490.0,0.00018354,2]
[368628868,1751251852765,-1555.39,0.00018354,2]
[368628869,1751251852776,-1197.04,0.00018354,2]
[368628870,1751251852787,-490.0,0.00018354,2]
[368628871,1751251852822,-712.43,0.00018354,2]
[368628872,1751251852833,-490.0,0.00018354,2]
[368628873,1751251852844,-490.0,0.00018354,2]
[368628874,1751251852854,-1005.51,0.00018354,2]
[368628875,1751251852863,-603.87,0.00018354,2]
[368628876,1751251852873,-490.0,0.00018354,2]
[368628877,1751251852882,-490.0,0.00018354,2]
[368628878,1751251852893,-490.0,0.00018354,2]
[368628879,1751251852905,-490.0,0.00018354,2]
[368628880,1751251852915,-595.18,0.00018354,2]
[368628881,1751251852925,-1150.89,0.00018354,2]
[368628882,1751251852935,-769.02,0.00018354,2]
[368628883,1751251852945,-490.0,0.00018354,2]
[368628884,1751251852955,-490.0,0.00018354,2]
[368628885,1751251852965,-1182.38,0.00018354,2]
[368628886,1751251852975,-490.0,0.00018354,2]
[368628887,1751251852985,-490.0,0.00018354,2]
[368628888,1751251852994,-490.0,0.00018354,2]
[368628889,1751251853004,-1039.16,0.00018354,2]
[368628890,1751251853013,-668.98,0.00018354,2]
[368628891,1751251853023,-1133.4,0.00018354,2]
[368628892,1751251853033,-490.0,0.00018354,2]
[368628893,1751251853042,-490.0,0.00018354,2]
[368628894,1751251853051,-490.0,0.00018354,2]
[368628895,1751251853060,-684.77,0.00018354,2]
[368628896,1751251853069,-2704.6,0.00018354,2]
[368628897,1751251853079,-490.0,0.00018354,2]
[368628898,1751251853088,-544.9,0.00018354,2]
[368628899,1751251853097,-1629.48,0.00018354,2]
[368628900,1751251853106,-490.0,0.00018354,2]
[368628901,1751251853115,-490.0,0.00018354,2]
[368628902,1751251853124,-490.0,0.00018354,2]
[368628903,1751251853133,-490.0,0.00018354,2]
[368628904,1751251853142,-490.0,0.00018354,2]
[368628905,1751251853153,-490.0,0.00018354,2]
[368628906,1751251853162,-2625.87,0.00018354,2]
[368628907,1751251853171,-536.5,0.00018354,2]
[368628908,1751251853274,-5845.11,0.00018354,2]
[368628909,1751251853283,-705.3,0.00018354,2]
[368628910,1751251853293,-490.0,0.00018354,2]
[368628911,1751251853302,-490.0,0.00018354,2]
[368628912,1751251853311,-490.0,0.00018354,2]
[368628913,1751251853320,-490.0,0.00018354,2]
[368628914,1751251853330,-490.0,0.00018354,2]
[368628915,1751251853340,-490.0,0.00018354,2]
[368628916,1751251853349,-490.0,0.00018354,2]
[368628917,1751251853358,-490.0,0.00018354,2]
[368628918,1751251853368,-490.0,0.00018354,2]
[368628919,1751251853377,-490.0,0.00018354,2]
[368628920,1751251853387,-1901.07,0.00018354,2]
[368628921,1751251853396,-1629.55,0.00018354,2]
[368628922,1751251853406,-549.85,0.00018354,2]
[368628923,1751251853416,-2484.8,0.00018354,2]
[368628924,1751251853425,-490.0,0.00018354,2]
[368628925,1751251853437,-490.0,0.00018354,2]
[368628926,1751251853450,-490.0,0.00018354,2]
[368628927,1751251853460,-660.81,0.00018354,2]
[368628928,1751251853469,-490.0,0.00018354,2]
[368628929,1751251853480,-2495.51,0.00018354,2]
[368628930,1751251853490,-3179.03,0.00018354,2]
[368628931,1751251853500,-490.0,0.00018354,2]
[368628932,1751251853510,-490.0,0.00018354,2]
[368628933,1751251853521,-490.0,0.00018354,2]
[368628934,1751251853532,-490.0,0.00018354,2]
[368628935,1751251853542,-490.0,0.00018354,2]
[368628936,1751251853552,-490.0,0.00018354,2]
[368628937,1751251853561,-492.45,0.00018354,2]
[368628938,1751251853570,-1130.48,0.00018354,2]
[368628939,1751251853579,-1006.54,0.00018354,2]
[368628940,1751251853588,-2319.29,0.00018354,2]
[368628941,1751251853597,-2192.34,0.00018354,2]
[368628942,1751251853606,-490.0,0.00018354,2]
[368628943,1751251853615,-852.79,0.00018354,2]
[368628944,1751251853624,-657.55,0.00018354,2]
[368628945,1751251853634,-490.0,0.00018354,2]
[368628946,1751251853644,-490.0,0.00018354,2]
[368628947,1751251853654,-912.83,0.00018354,2]
[368628948,1751251853664,-436.57347488,0.00018354,2]
[368628949,1751251853674,-490.0,0.00018354,2]
[368628950,1751251853684,-490.0,0.00018354,2]
[368628951,1751251853694,-490.0,0.00018354,2]
[368628952,1751251853703,-1158.24,0.00018354,2]
[368628953,1751251853713,-490.0,0.00018354,2]
[368628954,1751251853725,-10854.25,0.00018354,2]
[368628955,1751251853735,-614.78,0.00018354,2]
[368628956,1751251853744,-869.07,0.00018354,2]
[368628957,1751251853754,-490.0,0.00018354,2]
[368628958,1751251853763,-490.0,0.00018354,2]
[368628959,1751251853772,-490.0,0.00018354,2]
[368628960,1751251853781,-2819.07,0.00018354,2]
[368628961,1751251853791,-1345.4,0.00018354,2]
[368628962,1751251853800,-522.86,0.00018354,2]
[368628963,1751251853809,-2580.5,0.00018354,2]
[368628964,1751251853818,-490.0,0.00018354,2]
[368628965,1751251853827,-490.0,0.00018354,2]
[368628966,1751251853836,-6040.76,0.00018354,2]
[368628967,1751251853846,-1131.28,0.00018354,2]
[368628968,1751251853855,-418.08322862,0.00018354,2]
[368628969,1751251853864,-490.0,0.00018354,2]
[368628970,1751251853874,-490.0,0.00018354,2]
[368628971,1751251853884,-490.0,0.00018354,2]
[368628972,1751251853892,-490.0,0.00018354,2]
[368628973,1751251853902,-490.0,0.00018354,2]
[368628974,1751251853911,-490.0,0.00018355,2]
[368628975,1751251853920,-1073.89,0.00018355,2]
[368628976,1751251853929,-490.0,0.00018355,2]
[368628977,1751251853937,-749.2,0.00018355,2]
[368628978,1751251853950,-899.42,0.00018355,2]
[368628979,1751251853960,-490.0,0.00018355,2]
[368628980,1751251853969,-490.0,0.00018355,2]
[368628981,1751251853979,-490.0,0.00018355,2]
[368628982,1751251853988,-1000.0,0.00018355,2]
[368628983,1751251853998,-151.0,0.00018355,2]
[368628984,1751251854007,-643.14,0.00018355,2]
[368628985,1751251854017,-490.0,0.00018355,2]
[368628986,1751251854028,-500.0,0.00018355,2]
[368628987,1751251854038,-490.0,0.00018355,2]
[368628988,1751251854047,-791.81,0.00018355,2]
[368628989,1751251854058,-490.0,0.00018355,2]
[368628990,1751251854067,-490.0,0.00018355,2]
[368628991,1751251854077,-523.46,0.00018355,2]
[368628992,1751251854086,-490.0,0.00018355,2]
[368628993,1751251854096,-172.31806515,0.00018355,2]
[368628994,1751251854105,-490.0,0.00018355,2]
[368628995,1751251854115,-2366.28,0.00018355,2]
[368628996,1751251854124,-490.0,0.00018355,2]
[368628997,1751251854134,-490.0,0.00018355,2]
[368628998,1751251854143,-3147.78,0.00018355,2]
[368628999,1751251854153,-490.0,0.00018355,2]
[368629000,1751251854162,-490.0,0.00018355,2]
[368629001,1751251854172,-490.0,0.00018355,2]
[368629002,1751251854181,-815.6,0.00018355,2]
[368629003,1751251854191,-688.36,0.00018355,2]
[368629004,1751251854200,-492.6254188,0.00018355,2]
[368629005,1751251854209,-2650.12,0.00018355,2]
[368629006,1751251854218,-564.24761807,0.00018355,2]
[368629007,1751251854227,-490.0,0.00018355,2]
[368629008,1751251854236,-490.0,0.00018355,2]
[368629009,1751251854245,-734.05,0.00018355,2]
[368629010,1751251854255,-490.0,0.00018355,2]
[368629011,1751251854263,-901.31,0.00018355,2]
[368629012,1751251854272,-504.38,0.00018355,2]
[368629013,1751251854281,-902.0,0.00018355,2]
[368629014,1751251854290,-490.0,0.00018355,2]
[368629015,1751251854299,-1948.88,0.00018355,2]
[368629016,1751251854308,-490.0,0.00018355,2]
[368629017,1751251854317,-490.0,0.00018355,2]
[368629018,1751251854326,-490.0,0.00018355,2]
[368629019,1751251854334,-490.0,0.00018355,2]
[368629020,1751251854343,-1508.0,0.00018355,2]
[368629021,1751251854352,-490.0,0.00018355,2]
[368629022,1751251854360,-490.0,0.00018355,2]
[368629023,1751251854369,-995.76,0.00018355,2]
[368629024,1751251854378,-490.0,0.00018355,2]
[368629025,1751251854387,-2266.37,0.00018355,2]
[368629026,1751251854396,-491.05572473,0.00018355,2]